Cogmind - Beta 13 @@@ ROGUE MODE // 2024.03.10 @ 01:09:14 Player: arkn Result: Destroyed by G-47 Trooper with Particle Gun Performance ------------- Evolutions (2) 1000 Regions Visited (6) 1200 Robots Destroyed (59) 295 Value Destroyed (1711) 1711 Prototype IDs (0) 0 Alien Tech Used (0) 0 Bonus (253) 253 TOTAL SCORE: 4459 Bonus ------- High Alert Combat Kills 44 Follower Combat Kills 233 Friendly Fire -24 Cogmind --------- Core Integrity 0/550 Matter 253/300 Energy 87/100 System Corruption 12% Temperature Warning (334) Movement Treading (145) Location -8/Storage Parts ------- > --- POWER (1) -------- (None) > --- PROPULSION (3) --- Advanced Treads (fused) Advanced Treads > --- UTILITY (5) ------ Large Storage Unit Improved Signal Interpreter Advanced Targeting Computer Graphene Brace > --- WEAPON (2) ------- Advanced Assault Cannon Advanced Assault Cannon > --- INVENTORY (15) --- Armored Treads VSS Leg Medium Storage Unit Compact Matter Pod (150) Structural Scanner Machine Analyzer Seismic Detector Weapon Cycler Improved Light Armor Plating Heavy Assault Rifle Shock Bomb Launcher Hammer Heavy Mace Peak State ------------ > --- POWER ------------ Improved Deuterium Engine > --- PROPULSION ------- Armored Treads Advanced Treads Advanced Treads > --- UTILITY ---------- Large Storage Unit Improved Signal Interpreter Advanced Targeting Computer Improved Light Armor Plating Graphene Brace > --- WEAPON ----------- Advanced Assault Cannon Advanced Assault Cannon > --- INVENTORY -------- Light Treads VSS Leg Medium Storage Unit Structural Scanner Machine Analyzer Seismic Detector Weapon Cycler High-powered Tractor Beam Light EM Pulse Cannon Heavy Assault Rifle Advanced Assault Cannon Advanced Assault Cannon Hammer Heavy Mace [Rating: 41] Favorites ----------- Power Ion Engine Engine Ion Engine Power Core Nuclear Core Propulsion Aluminum Leg Treads Advanced Treads Leg Aluminum Leg Utility Small Storage Unit Device Makeshift Sensor Array Storage Small Storage Unit Processor Improved Signal Interpreter Protection Improved Light Armor Plating Weapon Light EM Pulse Cannon Energy Gun EM Shotgun Energy Cannon Light EM Pulse Cannon Ballistic Gun Gauss Rifle Ballistic Cannon Advanced Assault Cannon Build | -11 -10 -10 -10 -9 -8 -8 ------- Run | Yrd Mat Min Exi Min Mat Sto Slots Evolved 4 | . . . . . 4 . Power . | . . . . . . . Propulsion 1 | . . . . . 1 . Utility 3 | . . . . . 3 . Weapon . | . . . . . . . Parts Attached 51 | 1 13 . 1 . 33 3 Power 4 | . . . . . 4 . Engine 2 | . . . . . 2 . Core 2 | . . . . . 2 . Reactor . | . . . . . . . Propulsion 17 | . 5 . . . 11 1 Treads 8 | . 2 . . . 5 1 Leg 9 | . 3 . . . 6 . Wheel . | . . . . . . . Hover . | . . . . . . . Flight . | . . . . . . . Utility 16 | 1 1 . 1 . 13 . Device 6 | 1 1 . 1 . 3 . Storage 2 | . . . . . 2 . Processor 3 | . . . . . 3 . Hackware . | . . . . . . . Protection 5 | . . . . . 5 . Artifact . | . . . . . . . Weapon 14 | . 7 . . . 5 2 Energy Gun 4 | . 4 . . . . . Energy Cannon 3 | . 3 . . . . . Ballistic Gun 3 | . . . . . 3 . Ballistic Cannon 4 | . . . . . 2 2 Launcher . | . . . . . . . Special Weapon . | . . . . . . . Impact Weapon . | . . . . . . . Slashing Weapon . | . . . . . . . Piercing Weapon . | . . . . . . . Special Melee Weapon . | . . . . . . . Unidentified Prototypes . | . . . . . . . Corrupted Parts 3 | . 1 . . . 2 . System Corruption 13 | . 2 . . . 11 . Parts Lost 17 | . 3 . . . 10 4 Power 3 | . . . . . 2 1 Propulsion 6 | . 1 . . . 4 1 Utility 3 | . . . . . 2 1 Weapon 5 | . 2 . . . 2 1 Highest Loss Streak 6 | . 2 . . . 6 4 To Critical Strikes 1 | . . . . . 1 . Average Slot Usage (%) 97 | . 98 100 100 100 95 97 Engine 11 | . 14 14 14 14 7 8 Treads 9 | . 15 . . . 11 25 Leg 17 | . 12 28 28 28 14 . Device 13 | . 14 14 14 14 11 17 Storage 11 | . 14 14 14 14 9 9 Processor 5 | . . . . . 12 18 Protection 4 | . . . . . 10 . Energy Gun 1 | . 7 . . . . . Energy Cannon 15 | . 18 28 28 28 5 . Ballistic Gun 1 | . 1 . . . 3 . Ballistic Cannon 4 | . . . . . 8 18 Naked Turns . | . . . . . . . Heaviest Build 46 | 13 19 19 23 23 46 44 Greatest Support 64 | 20 40 20 20 20 64 64 Greatest Overweight (x) 1 | . 1 . 1 1 1 . Average Overweight (x) . | . . . . 1 . . Largest Inventory Capacity 15 | 8 8 8 8 8 15 15 Average Capacity 9 | 8 8 8 8 8 10 15 Most Carried 15 | 7 8 8 8 8 15 15 Average Carried 9 | 6 7 8 7 8 9 14 Final Capacity 15 | 8 8 8 8 8 15 15 Final Carried 15 | 7 8 8 8 8 15 13 Class Distribution -------------------- 72% | Mutant 23% | Commander-Mutant 3% | Scavenger-Mutant Dominant Class ---------------- Mutant | -10/Materials Mutant | -10/Mines Mutant | -10/Exiles Commander-Mutant | -9/Mines Mutant | -8/Materials Mutant | -8/Storage Resources | -11 -10 -10 -10 -9 -8 -8 ----------- Run | Yrd Mat Min Exi Min Mat Sto Matter Collected 1746 | 220 126 . . 49 1011 340 Remotely 739 | . . . . . 399 340 Salvage Created 1786 | 118 688 . . . 654 326 Parts 112 | 4 40 . . . 41 27 Haulers Intercepted 3 | . . . . . 2 1 Recyclers Shooed 5 | 1 1 . . . 3 . Parts Field Recycled . | . . . . . . . Retrieved Matter . | . . . . . . . Parts Self-Destructed . | . . . . . . . Prevented . | . . . . . . . Kills | -11 -10 -10 -10 -9 -8 -8 ------- Run | Yrd Mat Min Exi Min Mat Sto Combat Hostiles Destroyed 36 | . 12 . . . 16 8 Guns 16 | . 6 . . . 10 . Cannons 18 | . 4 . . . 6 8 AOE 2 | . 2 . . . . . Classes Destroyed 14 | 2 5 . . . 7 . Worker 2 | . 2 . . . . . Builder 5 | . 1 . . . 2 2 Tunneler 2 | 1 1 . . . . . Hauler 3 | . . . . . 2 1 Recycler 1 | 1 . . . . . . Mechanic 1 | . . . . . 1 . Operator 2 | . 2 . . . . . Watcher 7 | . 2 . . . 4 1 Swarmer 7 | . . . . . 7 . Grunt 19 | . 12 . . . 1 6 Sentry 5 | . . . . . 4 1 Specialist 2 | . . . . . 2 . Hunter 2 | . . . . . 1 1 Heavy 1 | . . . . . 1 . Best Kill Streak 9 | 2 7 . . . 5 9 Combat Bots Only 5 | . 5 . . . 5 4 Max Kills in Single Turn 2 | 1 2 . . . 1 1 Gunslinging . | . . . . . . . Exploded 1 | . 1 . . . . . Melee . | . . . . . . . Uniques/NPCs Destroyed . | . . . . . . . Combat | -11 -10 -10 -10 -9 -8 -8 -------- Run | Yrd Mat Min Exi Min Mat Sto Hostile Shots Fired 262 | . 51 . . . 144 67 Missed 84 | . 14 . . . 57 13 Damage Taken 3168 | . 609 . . . 1591 968 Core 683 | . 123 . . . 302 258 Absorbed by Shields . | . . . . . . . Redirected to Shielding 47 | . . . . . 47 . Core Remaining (%) 75 | 100 . . . 50 . . Volleys Fired 146 | 5 45 . . . 64 32 Largest 2 | 2 2 . . . 2 2 Hottest 112 | 40 112 . . . 112 96 Shots Fired 272 | 10 76 . 1 . 124 61 Gun 100 | 10 30 . . . 60 . Cannon 172 | . 46 . 1 . 64 61 Launcher . | . . . . . . . Special . | . . . . . . . Kinetic 186 | 10 6 . . . 109 61 Thermal . | . . . . . . . Explosive . | . . . . . . . Electromagnetic 86 | . 70 . 1 . 15 . Robot Hit Streak 13 | 4 13 . . . 13 6 Robot Miss Streak 6 | 1 3 . . . 6 3 Penetration Max 1 | . . . . . 1 . Secondary Targets 1 | . . . . . 1 . Max Gunslinging Chain 1 | . . . . . 1 . Shots Hit Robots 171 | 7 56 . . . 74 34 Core Hits 83 | 3 31 . . . 32 17 Critical Kills . | . . . . . . . Critical Parts Destroyed 1 | . . . . . 1 . Critical Strikes 10 | . . . . . 4 6 Destroy 1 | . . . . . 1 . Blast 9 | . . . . . 3 6 Melee Attacks . | . . . . . . . Impact . | . . . . . . . Slashing . | . . . . . . . Piercing . | . . . . . . . Sneak Attacks . | . . . . . . . Combat Hostiles . | . . . . . . . Follow-up Attacks . | . . . . . . . Damage Inflicted 4459 | 58 1583 . . . 1822 996 Guns 1127 | 58 345 . . . 724 . Cannons 2758 | . 747 . . . 1027 984 Explosions 549 | . 491 . . . 58 . Melee . | . . . . . . . Ramming 25 | . . . . . 13 12 Kinetic 2631 | 58 41 . . . 1548 984 Thermal 407 | . 349 . . . 58 . Explosive 142 | . 142 . . . . . Electromagnetic 1254 | . 1051 . . . 203 . Impact . | . . . . . . . Slashing . | . . . . . . . Piercing . | . . . . . . . Highest Corruption 12 | . 2 2 2 2 12 12 Average Corruption 5 | . 2 2 2 2 9 12 Corruption Purged . | . . . . . . . Corruption Blocked . | . . . . . . . Effects 51 | . 3 . 9 4 27 8 Message Errors 8 | . . . 2 . 5 1 Matter Fused 14 | . . . 3 3 6 2 Heat Flow Errors 10 | . . . 1 1 5 3 Energy Discharges 4 | . . . . . 3 1 Parts Rejected 1 | . . . . . 1 . Parts Fused 1 | . . . . . 1 . Data Loss (minor) 10 | . 3 . 2 . 4 1 Data Loss (major) 1 | . . . . . 1 . Misfires 1 | . . . 1 . . . Weapon Failures 1 | . . . . . 1 . Overload Shots . | . . . . . . . Overflow Damage 110 | . 92 . . . 14 4 Projectiles 93 | . 75 . . . 14 4 Explosions 17 | . 17 . . . . . Melee . | . . . . . . . Knockbacks 10 | . . . . . 3 7 Impact . | . . . . . . . Kinetic 10 | . . . . . 3 7 Secondary . | . . . . . . . Self-Inflicted Damage 179 | . 179 . . . . . Shots 5 | . 5 . . . . . Rammed 2 | . . . . . 1 1 Targets Rammed 4 | . . . . . 3 1 Kicked 2 | . . . . . 2 . Crushed . | . . . . . . . Highest Temperature 541 | . 239 . 227 125 306 541 Average Temperature 127 | . 84 . 106 67 80 257 Received Heat Transfer 726 | . 240 . . . 81 405 Effects 24 | . . . . . 1 23 Shutdowns 5 | . . . . . . 5 Energy Bleed 3 | . . . . . 1 2 Interference 6 | . . . . . . 6 Short Circuit 3 | . . . . . . 3 Damage (minor) 1 | . . . . . . 1 Damage (major) 5 | . . . . . . 5 Damage (core) 1 | . . . . . . 1 Siege Activations . | . . . . . . . Robots Corrupted 1 | . 1 . . . . . Combat Hostiles . | . . . . . . . Parts Fried 6 | . 6 . . . . . Impact Corruptions . | . . . . . . . Robots Melted . | . . . . . . . Combat Hostiles . | . . . . . . . Parts Melted . | . . . . . . . Heat Transferred 450 | . 350 . . . 100 . Parts Sabotaged . | . . . . . . . Parts Stolen . | . . . . . . . Parts Stripped . | . . . . . . . Power Chain Reactions 7 | . 6 . . . 1 . Alert | -11 -10 -10 -10 -9 -8 -8 ------- Run | Yrd Mat Min Exi Min Mat Sto Peak Influence 463 | 10 363 82 . 61 463 403 Initial 148 | . 6 82 . . . 148 Average 173 | 8 172 82 . 28 222 264 Maximum Alert Level 2 | . 1 . . . 2 2 Low Security (%) 60 | 100 62 100 . 100 48 29 Level 1 31 | . 37 . . . 36 67 Level 2 7 | . . . . . 15 3 Level 3 . | . . . . . . . Level 4 . | . . . . . . . Level 5 . | . . . . . . . High Security . | . . . . . . . Max Security . | . . . . . . . Squads Dispatched 7 | . 3 . . . 3 1 Investigation 2 | . 2 . . . . . Extermination . | . . . . . . . Reinforcement 5 | . 1 . . . 3 1 Assault . | . . . . . . . Garrison . | . . . . . . . Intercept . | . . . . . . . Searches Triggered . | . . . . . . . Construction Impeded . | . . . . . . . Haulers Reinforced . | . . . . . . . Active Scanning Responses . | . . . . . . . Cargo Convoy Interrupts . | . . . . . . . Stealth | -11 -10 -10 -10 -9 -8 -8 --------- Run | Yrd Mat Min Exi Min Mat Sto Distress Signals 9 | . 3 . . . 3 3 Communications Jammed . | . . . . . . . Distress Signals . | . . . . . . . Times Spotted 75 | . 23 . . 1 40 11 Peak Tracking Total 6 | . 6 . . 2 5 3 Tactical Retreats 5 | . 2 . . . 3 . Traps | -11 -10 -10 -10 -9 -8 -8 ------- Run | Yrd Mat Min Exi Min Mat Sto Traps Triggered 3 | . 1 . . . 2 . Indirectly . | . . . . . . . Trap Hack Attempts . | . . . . . . . Triggered . | . . . . . . . Disarmed . | . . . . . . . Reprogrammed . | . . . . . . . Reused . | . . . . . . . Traps Extracted . | . . . . . . . Installed . | . . . . . . . Triggered 1 | . 1 . . . . . Machines | -11 -10 -10 -10 -9 -8 -8 ---------- Run | Yrd Mat Min Exi Min Mat Sto Machines Disabled 10 | . 7 . . . 2 1 Max in Single Turn 3 | . 3 . . . . 1 Garrison Access 1 | . . . . . . 1 Machines Repaired . | . . . . . . . Machines Dismantled . | . . . . . . . Machines Sabotaged . | . . . . . . . Overloaded Fab Kills . | . . . . . . . Hacking | -11 -10 -10 -10 -9 -8 -8 --------- Run | Yrd Mat Min Exi Min Mat Sto Machines Accessed 4 | . 1 . 1 . 1 1 Terminals 2 | . 1 . . . 1 . Fabricators . | . . . . . . . Repair Stations . | . . . . . . . Recycling Units . | . . . . . . . Scanalyzers . | . . . . . . . Garrison Access 1 | . . . . . . 1 Total Hacks 10 | . 5 . 1 . 2 2 Successful 8 | . 4 . 1 . 1 2 Failed 2 | . 1 . . . 1 . Catastrophic . | . . . . . . . Database Lockouts . | . . . . . . . Manual 8 | . 5 . . . 2 1 Terminals 7 | . 5 . . . 2 . Fabricators . | . . . . . . . Repair Stations . | . . . . . . . Recycling Units . | . . . . . . . Scanalyzers . | . . . . . . . Garrison Access 2 | . . . . . . 2 Terminal Hacks 1 | . . . 1 . . . Record 1 | . . . 1 . . . Fabricator Hacks . | . . . . . . . Repair Station Hacks . | . . . . . . . Recycling Unit Hacks . | . . . . . . . Scanalyzer . | . . . . . . . Garrison Access Hacks 1 | . . . . . . 1 Seal Access 1 | . . . . . . 1 Unauthorized Hacks 6 | . 4 . . . 1 1 Terminals 5 | . 4 . . . 1 . Track 1 | . 1 . . . . . Botnet 2 | . 1 . . . 1 . Detonate 1 | . 1 . . . . . Operators 1 | . 1 . . . . . Fabricators . | . . . . . . . Repair Stations . | . . . . . . . Recycling Units . | . . . . . . . Scanalyzers . | . . . . . . . Garrison Access 1 | . . . . . . 1 Watchers 1 | . . . . . . 1 Data Cores Recovered 1 | . 1 . . . . . Used 1 | . 1 . . . . . Hacking Detections 3 | . 1 . . . 1 1 Full Trace Events . | . . . . . . . Feedback Events . | . . . . . . . Feedback Blocked . | . . . . . . . Robot Schematics Acquired . | . . . . . . . Robots Built . | . . . . . . . Authchips . | . . . . . . . Time . | . . . . . . . Total Robot Build Rating . | . . . . . . . Part Schematics Acquired . | . . . . . . . Parts Built . | . . . . . . . Authchips . | . . . . . . . Time . | . . . . . . . Total Part Build Rating . | . . . . . . . Parts Repaired . | . . . . . . . Time . | . . . . . . . Parts Recycled . | . . . . . . . Recycled Matter . | . . . . . . . Retrieved Matter . | . . . . . . . Retrieved Components . | . . . . . . . Parts Scanalyzed . | . . . . . . . Part Schematics Acquired . | . . . . . . . Parts Damaged . | . . . . . . . Bothacking | -11 -10 -10 -10 -9 -8 -8 ------------ Run | Yrd Mat Min Exi Min Mat Sto Used RIF Installer . | . . . . . . . Robots Hacked . | . . . . . . . Non-combat . | . . . . . . . Combat . | . . . . . . . Robot Hacks Applied . | . . . . . . . Relay Couplers Released . | . . . . . . . Fabnet Peak Effective % . | . . . . . . . Robots Rewired 4 | . . . 4 . . . Allies Hacked . | . . . . . . . Hacks Repelled . | . . . . . . . Allies | -11 -10 -10 -10 -9 -8 -8 -------- Run | Yrd Mat Min Exi Min Mat Sto Total Allies 4 | . . . 4 . . . Largest Group 4 | . . . 4 4 4 . Highest-Rated Group 58 | . . . 58 58 58 . Highest-Rated Ally 21 | . . . 21 21 21 . Total Orders . | . . . . . . . Ally Attacks 47 | . . . . 8 39 . Total Damage 600 | . . . . 135 465 . Kills 11 | . . . . 2 9 . Allies Corrupted . | . . . . . . . Allies Melted . | . . . . . . . Intel | -11 -10 -10 -10 -9 -8 -8 ------- Run | Yrd Mat Min Exi Min Mat Sto Robot Analysis Total . | . . . . . . . Derelict Logs Recovered . | . . . . . . . Drone Launches . | . . . . . . . Drone Recoveries . | . . . . . . . Exploration | -11 -10 -10 -10 -9 -8 -8 ------------- Run | Yrd Mat Min Exi Min Mat Sto Turns Passed 3569 | 30 808 20 647 520 1358 186 Spaces Moved 1934 | 13 436 12 431 266 721 55 Core . | . . . . . . . Treads 581 | . 202 . . . 324 55 Legs 1353 | 13 234 12 431 266 397 . Wheels . | . . . . . . . Hover . | . . . . . . . Flight . | . . . . . . . Fastest Speed 120 | 120 120 120 120 190 123 145 Average Speed 149 | 120 138 120 143 190 145 150 Slowest Speed 225 | 120 190 120 190 190 225 153 Overloaded Moves . | . . . . . . . Propulsion Burnouts . | . . . . . . . Robots Hopped . | . . . . . . . Cave-ins Triggered 1 | . . . . . 1 . Exploration Rate (%) 40 | 2 68 5 88 52 51 16 Regions Visited 6 Branch Regions 4 Pre-discovered Areas . | . . . . . . . Known Exits Taken 1 | . . . . . 1 . Unknown Exits Taken 5 | 1 1 1 1 1 . . Scrap Searched . | . . . . . . . Spaces Dug 3 | . . . . . 3 . Terrain Destroyed 85 | . 54 . . . 20 11 Melee . | . . . . . . . Projectile 25 | . . . . . 14 11 AOE 60 | . 54 . . . 6 . Terrain Rammed . | . . . . . . . Walls Destroyed . | . . . . . . . Machines Disabled . | . . . . . . . Actions | -11 -10 -10 -10 -9 -8 -8 --------- Run | Yrd Mat Min Exi Min Mat Sto Total 2341 | 19 566 17 461 281 900 97 Wait 127 | . 47 6 2 16 51 5 Move 1928 | 12 435 11 430 265 720 55 Hop . | . . . . . . . Pick Up 30 | 1 12 . 1 . 16 . Fast Attach 21 | 1 4 . 1 . 15 . Attach 9 | . 2 . . . 5 2 Detach . | . . . . . . . Swap 21 | . 7 . . . 13 1 Drop 30 | . 14 . 2 . 13 1 Fire 146 | 5 45 . . . 64 32 Melee . | . . . . . . . Ram . | . . . . . . . Kick 2 | . . . . . 2 . Crush 2 | . . . . . 1 1 Escape Stasis . | . . . . . . . Rewire 25 | . . . 25 . . . Trap . | . . . . . . . Miscellaneous . | . . . . . . . Route ------- -11/Scrapyard -10/Materials (discovered 3 exits: [*Mat] / [*Min x2]) -10/Mines -10/Exiles -9/Mines -8/Materials (discovered 2 exits: [*Fac] / *Sto) -8/Storage History --------- Turn | Location | Event 15 | -11/Scrapyard | Discovered new exit (range 3) 31 | -11/Scrapyard | Entered Materials 122 | -10/Materials | Discovered new exit (range 12) 314 | -10/Materials | Build established: Mutant 381 | -10/Materials | Discovered new exit (range 16) 667 | -10/Materials | Discovered new exit (range 7) 839 | -10/Materials | Entered Mines 846 | -10/Mines | Received a Rocket Launcher from a helpful Derelict 853 | -10/Mines | Deemed a non-threat by the Exiles lab entrance 853 | -10/Mines | Discovered new exit (range 5) 859 | -10/Mines | Entered Exiles 859 | -10/Exiles | Found Exiles lab destroyed 1486 | -10/Exiles | Discovered new exit (range 10) 1506 | -10/Exiles | Entered Mines 1506 | -9/Mines | Accompanied by 4 allies 1529 | -9/Mines | Met a Derelict bent on vengeance 1737 | -9/Mines | Build established: Commander-Mutant 1962 | -9/Mines | Discovered new exit (range 15) 2026 | -9/Mines | Entered Materials 2026 | -8/Materials | Accompanied by 4 allies 2026 | -8/Materials | Evolved 4 slots: Propulsion x1, Utility x3 2140 | -8/Materials | Discovered new exit (range 14) 2436 | -8/Materials | Discovered new exit (range 16) 2623 | -8/Materials | Crushed by falling debris 2685 | -8/Materials | System corruption reached 10% 2701 | -8/Materials | Lost 4 parts (2p1n1u) 2794 | -8/Materials | Core integrity fell below 50% 2824 | -8/Materials | Lost 6 parts (3n1u2w) 3029 | -8/Materials | Build established: Mutant 3382 | -8/Materials | Identified exit to Storage 3384 | -8/Materials | Entered Storage 3556 | -8/Storage | Core integrity fell below 20% 3570 | -8/Storage | Destroyed by G-47 Trooper with Particle Gun Last Messages --------------- 03550_ Overheating: Graphene Brace damaged (-74). 03550_ Overheating: Adv. Assault Cannon damaged (-69). 03550_ Overheating: Imp. Signal Interpreter damaged (-9). 03551_ Power failure, Imp. Deuterium Engine shutdown. 03551_ Overheating: Imp. Deuterium Engine damaged (-38). 03553_ Adv. Assault Cannon destroyed. 03554_ Overheating: Energy bleed (-71). 03556_ Overheating: Core damaged (-99). 03557_ Adv. Assault Cannon broken. 03557_ Overheating: Short circuit. 03559_ Broken Hpw. Tractor Beam destroyed. 03560_ System corrupted: Matter fused (-5). 03561_ Overheating: Imp. Deuterium Engine damaged (-11). 03561_ Imp. Deuterium Engine destroyed. 03563_ Overheating: System interference. 03563_ Adv. Assault Cannon temporarily disabled. 03563_ Imp. Signal Interpreter temporarily disabled. 03563_ Dropped Broken Adv. Assault Cannon. 03566_ O-16 Technician: "IFF HANDSHAKE FAILED. SECURING TERMINAL." 03569_ Slammed into A-02 Transporter. Map ----- +----------------------------------------------------+ | ?????????????????????????????????????????????????? | | ?????????????????????????????????????????????????? | | ?????????????????????????????????????????????????? | | ?????????????????????????????????????????????????? | | ?????????????????????????????????????????????????? | | ?????????????????????????????????????????????????? | | ?????????????????????????????????????????????????? | | ?????????????????????????????????????????????????? | | ?????????????????????????????????????????????????? | | ?????????????????????????????????????????????????? | | ???????????????????????????????????????########??? | | ??????????????????????????????????????## %""" #??? | | ??????????????????????????????????????#*!["T" #??? | | ???????????????????????????????????????#%= #??? | | ???????????????????????????????????????#!!! #??? | | ???????????????????????????????????????#!!! #??? | | ???????????????????????????????????????#!!! # ?? | | ???????????????????????????????????#########+## # | | ?????????????????#???####o#####????# + + | | ?????????????##??# ??# #????# # # | | ?????????????? # ?# """ #????# # #? | | ???????????????" ; # """ #????# + +? | | ?????????????????# ;%" " %!###### # #? | | ?????????????????+ ; a% [=#%;!####+##### #? | | ?????????????????????# g* !|!*!*[ #? | | ?????????????????????#[ =@*=[=%####### ## | | ?????????????????# ;=! ==!%%##?????# """ #? | | ?????????????????# #!* =! ]#??????# """ #? | | ?????????????????# ################# """ ## | | ???????????????? ??????? | | ?????????????????????????? | | ?????????????????????????? | | ??????????????????????????#################" "#### | | ??????????????????????????????????????????#"G"#??? | | ??????????????????????????????????????????# " #??? | | ??????????????????????????????????????????#####??? | | ?????????????????????????????????????????????????? | | ?????????????????????????????????????????????????? | | ?????????????????????????????????????????????????? | | | | | | | | | | | | | | | | | | | | | | | +----------------------------------------------------+ Best States ------------- Heat Dissipation 31 Energy Generation 16 Energy Capacity 290 Matter Stores 300 Matter Capacity 300 Sight Range 16 Robot Scan Range 19 Terrain Scan Density 10 Armor Coverage 225 Weapon Shielding 33 Evasion (%) 55 Targeting Accuracy 8 Recoil Reduction 3 Item Schematics ----------------- None Robot Schematics ------------------ None Fabricated ------------ Nothing Alien Tech Used ----------------- None Achievements -------------- None Challenges ------------ None Game ------ Seed MatterAlphaDeconstructor Manual? 0 Play Time 00:33:07 Cumulative 148.4 hours Start 2024.03.10 @ 00:36:57 End 2024.03.10 @ 01:09:14 Sessions 1 Manual Loads 0 Difficulty Rogue Special Mode None Game No. 123 Rogue 117 Adventurer 0 Explorer 6 Win Type - Total 3 Types 3/0/0/0/0/0/0/0/0 Lore% 41 Gallery% 55 Achievement% 47 Wizard Run 0 Options --------- Layout 0 ASCII 0 Keyboard 0 Movement Numpad Keybinds 0 Fullscreen 1 Font 24/Smallcaps Map View 113x50 Zoom Use 0% Tactical HUD 1 Map Filters NONE Filters NONE Steam 1 RUN: 7e0ef0b3-910e-48bf-a426-5d8452b2510b